bitfinex/quotes_SOLUSD_20251130
["timestamp","ask_amount","ask_price","bid_price","bid_amount"]
[1764529586901,9.39482735,138.67,138.64,16.998864]
[1764529587081,0.66,138.66,138.63,10.393282]
[1764529587281,0.66,138.66,138.63,11.103282]
[1764529587484,2.84343437,138.66,138.63,7.213282]
[1764529587889,0.66,138.65,138.63,7.213282]
[1764529588073,0.66,138.65,138.63,7.923282]
[1764529589401,9.39534302,138.66,138.63,7.923282]
[1764529589701,10.05534302,138.66,138.63,7.923282]
[1764529590202,10.05534302,138.66,138.63,0.71]
[1764529594906,7.87190865,138.66,138.63,0.71]
[1764529598898,10.05534302,138.66,138.63,0.71]
[1764529599713,0.66,138.65,138.63,0.71]
[1764529600414,0.66,138.65,138.62,26.70262412]
[1764529600590,0.66,138.65,138.62,27.41262412]
[1764529601112,0.66,138.65,138.62,26.70262412]
[1764529601315,0.66,138.65,138.63,0.71]
[1764529603615,0.66,138.65,138.62,23.52262412]
[1764529603915,0.66,138.65,138.63,0.71]
[1764529606117,0.66,138.65,138.62,23.52262412]
[1764529606313,2.18343437,138.64,138.61,7.92436551]
[1764529606806,2.84343437,138.64,138.61,7.92436551]
[1764529607009,2.84343437,138.64,138.62,0.71]
[1764529607010,0.66,138.64,138.62,0.71]
[1764529607398,10.05610805,138.65,138.62,0.71]
[1764529609497,0.66,138.64,138.62,0.71]
[1764529609697,0.66,138.64,138.61,7.21436551]
[1764529610014,0.66,138.64,138.61,7.92436551]
[1764529610201,7.87306036,138.64,138.61,0.71]
[1764529614716,7.21306036,138.64,138.61,0.71]
[1764529614918,7.21306036,138.64,138.61,7.92447548]
[1764529615114,7.21306036,138.64,138.62,0.71]
[1764529618416,18.68897318,138.67,138.62,7.92390809]
[1764529618725,7.21188518,138.66,138.62,11.10390809]
[1764529618908,7.21188518,138.66,138.63,0.66]
[1764529620401,7.87188518,138.66,138.63,0.66]
[1764529622221,0.66,138.65,138.63,0.66]
[1764529622819,2.84343437,138.66,138.63,0.66]
[1764529623121,0.66,138.66,138.63,0.66]
[1764529623501,7.87221082,138.66,138.63,0.66]
[1764529624024,7.87221082,138.66,138.63,7.87336502]
[1764529624325,7.21221082,138.66,138.63,7.87336502]
[1764529624620,7.21221082,138.66,138.64,0.66]
[1764529626218,0.66,138.67,138.64,0.66]
[1764529626219,7.21136511,138.67,138.64,0.66]
[1764529626423,0.66,138.66,138.63,11.05336502]
[1764529626917,0.66,138.66,138.64,0.66]
[1764529629930,0.66,138.66,138.63,10.39336502]
[1764529630224,10.05555838,138.66,138.61,72.55430992]
[1764529630526,10.05555838,138.66,138.62,0.66]
[1764529631125,7.87212401,138.66,138.61,71.59534589]
[1764529631429,0.66,138.65,138.61,71.59534589]
[1764529632226,7.21212401,138.66,138.62,0.28432314]
[1764529632427,7.87152325,138.67,138.62,11.27770243]
[1764529632625,7.21152325,138.67,138.62,11.27770243]
[1764529632817,0.66,138.66,138.62,11.27770243]
[1764529633133,0.66,138.66,138.63,0.66]
[1764529633426,0.66,138.66,138.63,7.87336646]
[1764529639036,0.66,138.66,138.63,11.05336646]
[1764529640032,7.87191325,138.66,138.63,3.18]
[1764529640337,10.62350567,138.65,138.62,59.0176016]
[1764529640529,7.87255431,138.65,138.62,59.0176016]
[1764529640732,0.66,138.64,138.62,59.0176016]
[1764529641038,0.66,138.64,138.61,10.39432733]
[1764529641236,0.66,138.64,138.61,11.05432733]
[1764529644326,7.87299603,138.64,138.61,7.21432733]
[1764529644735,0.7,138.63,138.6,85.72127527]
[1764529644938,0.7,138.63,138.6,86.39127527]
[1764529645637,0.7,138.63,138.6,27.37367367]
[1764529645827,7.93299603,138.64,138.61,0.67]
[1764529646025,7.21299603,138.64,138.61,0.67]
[1764529646239,0.72,138.63,138.6,27.37367367]
[1764529648437,0.72,138.63,138.6,24.19367367]
[1764529648627,0.72,138.63,138.61,3.18]
[1764529649847,0.72,138.63,138.6,26.70367367]
[1764529653648,0.72,138.65,138.61,4.08095136]
[1764529654029,0.72,138.65,138.62,3.85]
[1764529654550,10.39299603,138.68,138.62,6.59095136]
[1764529654729,0.72,138.67,138.63,20.38981536]
[1764529655051,0.72,138.67,138.64,3.18]
[1764529657051,0.72,138.67,138.64,11.06244579]
[1764529657241,0.72,138.67,138.64,14.47339715]
[1764529659855,0.72,138.67,138.64,10.39244579]
[1764529660050,0.72,138.67,138.64,11.06244579]
[1764529660252,0.72,138.67,138.64,10.39244579]
[1764529660453,0.72,138.67,138.64,11.06244579]
[1764529661054,0.72,138.67,138.64,10.39244579]
[1764529662052,0.72,138.67,138.64,11.06244579]
[1764529662250,0.72,138.67,138.64,10.39244579]
[1764529662653,0.72,138.67,138.64,11.06244579]
[1764529663458,0.72,138.67,138.64,10.39244579]
[1764529667256,7.93183713,138.67,138.63,88.43107706]
[1764529667448,7.93183713,138.67,138.63,80.988864]
[1764529667657,0.72,138.66,138.63,80.988864]
[1764529668458,7.93234846,138.66,138.63,80.988864]
[1764529668661,7.93234846,138.66,138.63,64.68]
[1764529668867,0.72,138.65,138.63,64.68]
[1764529669045,0.72,138.65,138.63,3.18]
[1764529671061,0.72,138.65,138.63,6.59095136]
[1764529677670,0.72,138.65,138.63,3.41095136]
[1764529677965,0.72,138.65,138.63,6.59095136]
[1764529678165,0.71,138.67,138.64,0.68]
[1764529678353,0.71,138.66,138.63,75.98411042]
[1764529680472,0.71,138.68,138.64,4.09095136]
[1764529680670,0.71,138.67,138.65,3.18]
[1764529680964,0.71,138.67,138.63,72.12411042]
[1764529681168,0.71,138.67,138.64,3.18]
[1764529683549,7.92162319,138.67,138.64,3.18]
[1764529686678,0.71,138.66,138.64,3.18]
[1764529691982,0.71,138.66,138.62,3.18]
[1764529691983,7.92195081,138.66,138.62,3.18]
[1764529692470,0.71,138.65,138.62,3.18]
[1764529693172,7.92263185,138.65,138.62,3.18]
[1764529695078,7.21188518,138.66,138.62,3.18]
[1764529695280,0.71,138.64,138.62,3.18]
[1764529699064,0.71,138.64,138.61,85.02332701]
[1764529699271,0.71,138.64,138.62,3.18]
[1764529699580,0.71,138.64,138.61,77.808864]
[1764529699581,7.92297498,138.64,138.61,77.808864]
[1764529699967,0.71,138.63,138.61,77.808864]
[1764529702087,0.71,138.63,138.61,16.308864]
[1764529706672,0.71,138.63,138.6,10.39485372]
[1764529706874,10.10689279,138.63,138.59,9.59635976]
[1764529707197,10.10689279,138.63,138.59,0.2]
[1764529707198,9.39635976,138.62,138.59,0.2]
[1764529707400,10.08635976,138.62,138.59,0.2]
[1764529707698,0.69,138.61,138.59,0.2]
[1764529722594,7.9047225,138.61,138.59,0.2]
[1764529722797,10.08810728,138.61,138.59,0.2]
[1764529723001,2.89338478,138.6,138.59,0.2]
[1764529723188,31.78547569,138.6,138.59,0.2]
[1764529723706,29.60209091,138.6,138.59,0.2]
[1764529728494,7.21500721,138.6,138.59,0.2]
[1764529728888,7.92500721,138.6,138.59,0.2]
[1764529729500,10.81528503,138.6,138.59,0.2]
[1764529742318,3.18,138.63,138.59,3.06338478]
[1764529742498,28.11336579,138.62,138.59,3.06338478]
[1764529742907,7.89415868,138.62,138.59,3.06338478]
[1764529744095,7.21415868,138.62,138.61,2.18338478]
[1764529744294,7.21320511,138.64,138.61,2.18338478]
[1764529744506,10.7826478,138.64,138.61,2.86338478]
[1764529745227,10.7826478,138.64,138.61,0.68]
[1764529747130,0.68,138.63,138.6,7.89500721]
[1764529747299,0.68,138.63,138.6,7.21500721]
[1764529748200,7.89344739,138.63,138.6,7.21500721]
[1764529748435,15.1084546,138.63,138.59,10.27868703]
[1764529748628,0.68,138.62,138.59,10.27868703]
[1764529749625,0.68,138.62,138.59,71.77868703]
[1764529751124,7.8942334,138.62,138.59,61.7]
[1764529751334,2.18338478,138.6,138.59,0.2]
[1764529751636,9.39839199,138.6,138.59,0.2]
[1764529751808,10.07839199,138.6,138.59,0.2]
[1764529752011,28.11330758,138.6,138.59,0.2]
[1764529752533,25.9299228,138.6,138.59,0.2]
[1764529763233,7.89500721,138.6,138.59,0.2]
[1764529790146,10.39464687,138.61,138.59,0.2]
[1764529790351,7.93295473,138.64,138.6,19.72333559]
[1764529790547,3.41447159,138.62,138.59,0.2]
[1764529790845,7.31447159,138.63,138.59,0.2]
[1764529791027,0.72,138.62,138.59,0.88]
[1764529793132,7.934375,138.62,138.59,0.88]
[1764529796443,7.214375,138.62,138.59,0.88]
[1764529796654,0.66,138.61,138.59,0.2]
[1764529796834,7.874375,138.62,138.59,0.88]
[1764529797235,0.66,138.61,138.59,0.2]
[1764529798261,7.214375,138.62,138.59,0.2]
[1764529798557,7.874375,138.62,138.59,0.88]
[1764529801161,0.66,138.61,138.59,0.2]
[1764529801457,11.28884659,138.62,138.59,0.88]
[1764529801836,0.66,138.61,138.59,0.2]
[1764529802242,7.874375,138.62,138.59,0.88]
[1764529802454,11.28884659,138.62,138.59,0.88]
[1764529804045,10.62884659,138.62,138.59,0.2]
[1764529804246,0.66,138.61,138.59,0.2]
[1764529804448,7.874375,138.62,138.59,0.88]
[1764529807768,7.214375,138.62,138.6,0.68]
[1764529807963,7.214375,138.62,138.6,4.09447159]
[1764529808340,7.214375,138.62,138.61,0.68]
[1764529809167,7.214375,138.62,138.59,6.79447159]
[1764529809372,7.87320229,138.64,138.61,4.09447159]
[1764529810045,0.66,138.63,138.6,11.3094788]
[1764529811668,0.66,138.63,138.6,10.6294788]
[1764529811866,7.21240533,138.65,138.61,0.68]
[1764529812074,7.87240533,138.65,138.61,0.68]
[1764529812255,0.66,138.64,138.61,0.68]
[1764529813074,7.87324367,138.64,138.61,0.68]
[1764529814070,0.66,138.63,138.61,0.68]
[1764529815863,0.66,138.63,138.59,61.7]
[1764529816069,6.82894318,138.6,138.57,8.80994492]
[1764529816294,6.82894318,138.6,138.55,0.2]
[1764529816295,19.72333559,138.58,138.55,0.2]
[1764529816571,3.41447159,138.56,138.55,0.2]
[1764529816748,6.59447159,138.56,138.55,0.2]
[1764529816943,14.85837851,138.56,138.55,0.2]
[1764529817348,17.74990993,138.56,138.55,0.2]
[1764529818054,24.96699999,138.56,138.55,0.2]
[1764529818579,23.74048892,138.56,138.55,0.2]
[1764529819153,49.14362098,138.56,138.55,1e-08]
[1764529823679,32.445446,138.56,138.55,1e-08]
[1764529824055,13.28862148,138.56,138.55,1e-08]
[1764529824252,10.39709006,138.56,138.55,1e-08]
[1764529828518,13.29505058,138.56,138.55,1e-08]
[1764529828690,12.58505058,138.56,138.55,1e-08]
[1764529830586,10.39709006,138.56,138.55,1e-08]
[1764529832081,3.18,138.56,138.55,1e-08]
[1764529832258,2.89796052,138.61,138.55,2.88796053]
[1764529832462,7.21519069,138.6,138.56,2.18796052]
[1764529832660,7.21519069,138.6,138.56,2.88796052]
[1764529832863,7.21519069,138.6,138.57,0.7]
[1764529835884,7.21457983,138.61,138.57,10.10437462]
[1764529836264,7.21457983,138.61,138.58,0.7]
[1764529837294,7.92457983,138.61,138.58,0.7]
[1764529837786,2.89796052,138.6,138.56,0.7]
[1764529837986,2.89796052,138.59,138.56,0.7]
[1764529839506,0.71,138.59,138.56,0.7]
[1764529839670,7.92579809,138.59,138.56,0.7]
[1764529840190,7.21579809,138.59,138.56,0.7]
[1764529840406,7.92579809,138.59,138.56,0.7]
[1764529859003,0.71,138.59,138.56,7.91706826]
[1764529859310,0.71,138.59,138.56,7.93706826]
[1764529860508,7.21604849,138.58,138.55,1e-08]
[1764529860692,9.40400901,138.58,138.55,1e-08]
[1764529860897,0.71,138.57,138.55,1e-08]
[1764529866316,7.2165996,138.57,138.55,1e-08]
[1764529866524,7.2165996,138.57,138.55,0.72000001]
[1764529866693,7.2165996,138.57,138.55,1e-08]
[1764529866894,7.9265996,138.57,138.55,1e-08]
[1764529877724,7.2165996,138.57,138.55,1e-08]
[1764529878024,0.71,138.56,138.55,1e-08]
[1764529878226,7.9265996,138.57,138.55,1e-08]
[1764529879728,7.2165996,138.57,138.55,1e-08]
[1764529879914,7.9265996,138.57,138.55,1e-08]
[1764529885825,0.68,138.6,138.56,0.71]
[1764529886015,7.21453297,138.61,138.57,3.41597461]
[1764529886210,7.89453297,138.61,138.58,0.71]
[1764529887831,4.09597461,138.6,138.56,61.5]
[1764529888037,3.41597461,138.59,138.56,61.5]
[1764529888212,4.09597461,138.59,138.56,62.21]
[1764529888414,0.68,138.59,138.56,62.21]
[1764529889416,7.8957368,138.59,138.56,0.71]
[1764529893024,7.2157368,138.59,138.55,3.41597462]
[1764529893224,0.68,138.58,138.55,3.41597462]
[1764529893434,0.68,138.58,138.55,4.12597462]
[1764529893624,0.68,138.58,138.55,0.71000001]
[1764529895139,7.89621785,138.58,138.55,0.71000001]
[1764529895834,7.21621785,138.58,138.55,0.71000001]
[1764529896141,0.68,138.57,138.55,0.71000001]
[1764529899239,7.89672787,138.57,138.55,1e-08]
[1764529899622,0.68,138.56,138.55,1e-08]
[1764529902743,7.89672787,138.57,138.55,1e-08]
[1764529904929,7.21672787,138.57,138.55,1e-08]
[1764529905335,7.89672787,138.57,138.55,1e-08]
[1764529906039,7.21672787,138.57,138.55,1e-08]
[1764529906350,0.68,138.56,138.55,1e-08]
[1764529908147,7.89709006,138.56,138.55,1e-08]
[1764529912854,11.07709006,138.56,138.55,1e-08]
[1764529920855,2.89111344,138.58,138.55,0.71000001]
[1764529921036,7.93586606,138.59,138.55,0.71000001]
[1764529921238,18.76990928,138.59,138.55,0.71000001]
[1764529922158,0.72,138.58,138.55,0.71000001]
[1764529922834,18.04990928,138.59,138.55,0.71000001]
[1764529923040,18.76990928,138.59,138.55,4.12597462]
[1764529923240,18.04990928,138.59,138.55,4.12597462]
[1764529923454,18.76990928,138.59,138.56,0.71]
[1764529923658,7.93586606,138.59,138.56,0.71]
[1764529923861,15.35393467,138.59,138.56,0.71]
[1764529925670,14.63393467,138.59,138.55,3.41597462]
[1764529925854,7.93621251,138.58,138.55,4.12597462]
[1764529927170,7.93621251,138.58,138.55,0.71000001]
[1764529930967,7.93481472,138.61,138.57,3.41597461]
[1764529931277,22.17397531,138.64,138.59,3.41597461]
[1764529931585,0.72,138.64,138.59,3.41597461]
[1764529931769,0.72,138.63,138.6,0.71]
[1764529932970,7.93366087,138.63,138.6,0.71]
[1764529935886,7.93366087,138.63,138.6,0.71]
[1764529941291,0.72,138.62,138.59,7.21547763]
[1764529941473,0.72,138.62,138.59,7.92547763]
[1764529943288,7.93405223,138.62,138.59,7.21547763]
[1764529943491,0.68,138.61,138.59,7.21547763]
[1764529943669,2.86417947,138.61,138.57,65.33]
[1764529944293,0.68,138.6,138.57,72.54634881]
[1764529946392,0.68,138.6,138.57,68.71634881]
[1764529948694,0.68,138.6,138.57,7.21634881]
[1764529954179,3.18,138.61,138.58,0.69]
[1764529954378,0.68,138.65,138.6,2.18417947]
[1764529954578,0.68,138.65,138.59,3.18]
[1764529954579,0.68,138.66,138.63,2.18417947]
[1764529954778,3.18,138.67,138.62,2.18417947]
[1764529955099,0.68,138.65,138.61,2.18417947]
[1764529955597,0.68,138.65,138.61,2.87417947]
[1764529956120,7.89248036,138.65,138.61,2.87417947]
[1764529956685,0.68,138.65,138.61,10.0886342]
[1764529956984,0.68,138.64,138.61,10.0886342]
[1764529961119,0.68,138.64,138.61,7.90445473]
[1764529961401,0.68,138.64,138.61,10.0886342]
[1764529962707,0.68,138.64,138.62,0.69]
[1764529962892,0.68,138.64,138.61,10.0886342]
[1764529967308,7.89293585,138.64,138.61,10.0886342]
[1764529967509,7.89293585,138.64,138.61,7.90445473]
[1764529967698,7.89293585,138.64,138.61,10.0886342]
[1764529970212,7.89293585,138.64,138.61,7.90445473]
[1764529975720,7.89293585,138.64,138.61,0.69]
[1764529980322,0.7,138.63,138.6,61.5]
[1764529980535,2.18417947,138.62,138.59,61.5]
[1764529980733,2.18417947,138.6,138.55,0.71000001]
[1764529980901,2.18417947,138.59,138.55,1e-08]
[1764529981221,2.18417947,138.58,138.55,1e-08]
[1764529981610,0.7,138.57,138.55,1e-08]
[1764529985320,7.21585621,138.59,138.55,7.9275536]
[1764529985529,0.7,138.58,138.55,7.9275536]
[1764529993534,5.36417947,138.61,138.56,0.71]
[1764529993741,0.7,138.61,138.57,5.36417947]
[1764529993916,0.7,138.61,138.57,3.18]
[1764529994117,0.7,138.61,138.58,0.71]
[1764529994936,7.9146594,138.61,138.58,0.71]
[1764529995431,18.69304347,138.63,138.58,10.11000869]
[1764529995626,0.7,138.63,138.59,2.18417947]
[1764529995942,0.7,138.65,138.6,5.36417947]
[1764529996242,0.7,138.65,138.6,6.07417947]
[1764529996440,2.88417947,138.65,138.58,7.93743406]
[1764529996628,2.88417947,138.65,138.58,13.29000869]
[1764529996629,2.18417947,138.64,138.58,13.29000869]
[1764529996831,10.09750206,138.64,138.58,13.29000869]
[1764529997032,0.7,138.63,138.58,13.29000869]
[1764529998141,7.913576,138.63,138.58,13.29000869]
[1764529998345,0.7,138.62,138.59,0.71]
[1764529999249,0.7,138.62,138.59,7.92535415]
[1764530000746,5.0,138.6,138.59,7.92535415]
[1764530003353,5.0,138.6,138.59,7.21535415]
[1764530003561,5.0,138.6,138.59,7.90535415]
[1764530005551,5.0,138.6,138.59,7.21535415]
[1764530025980,5.72,138.6,138.59,7.21535415]
[1764530030284,5.72,138.6,138.58,68.09323103]
[1764530030285,5.72,138.6,138.58,71.89591895]
[1764530032765,0.72,138.59,138.56,16.308864]
[1764530033079,0.72,138.59,138.55,64.68000001]
[1764530033275,0.72,138.59,138.55,65.36000001]
[1764530034181,0.72,138.59,138.55,72.57737744]
[1764530036976,7.93579389,138.59,138.55,72.57737744]
[1764530037166,11.34902492,138.59,138.55,64.68000001]
[1764530037366,0.72,138.58,138.55,64.68000001]
[1764530037867,0.72,138.58,138.55,3.18000001]
[1764530039380,7.93613779,138.58,138.55,3.18000001]
[1764530039768,0.72,138.57,138.55,3.18000001]
[1764530046214,0.72,138.57,138.55,10.39760599]
[1764530051802,0.72,138.58,138.55,11.11760599]
[1764530053678,0.72,138.58,138.55,10.39760599]
[1764530054183,7.9360692,138.58,138.55,3.18000001]
[1764530054583,0.72,138.57,138.55,3.18000001]
[1764530055097,0.72,138.57,138.55,1e-08]
[1764530056277,11.34990209,138.57,138.55,1e-08]
[1764530056472,3.41323103,138.56,138.55,1e-08]
[1764530056678,4.13323103,138.56,138.55,1e-08]
[1764530057875,11.35032109,138.56,138.55,1e-08]
[1764530058888,14.53032109,138.56,138.55,1e-08]
[1764530062503,13.30435391,138.56,138.55,1e-08]
[1764530065282,16.19588533,138.56,138.55,1e-08]
[1764530069405,14.00862148,138.56,138.55,1e-08]
[1764530069613,16.19588533,138.56,138.55,1e-08]
[1764530080099,32.50474933,138.56,138.55,1e-08]
[1764530082421,32.78907247,138.56,138.55,1e-08]
[1764530090427,41.59901739,138.56,138.55,1e-08]
[1764530101847,31.78474933,138.56,138.55,1e-08]
[1764530102050,32.47474933,138.56,138.55,1e-08]
[1764530111148,32.75907247,138.56,138.55,1e-08]
[1764530111640,41.56901739,138.56,138.55,1e-08]
[1764530112447,39.38175354,138.56,138.55,1e-08]
[1764530112624,41.56901739,138.56,138.55,1e-08]
[1764530113855,31.78474933,138.56,138.55,1e-08]
[1764530114256,32.47474933,138.56,138.55,1e-08]
[1764530115053,31.78474933,138.56,138.55,1e-08]
[1764530115252,13.28862148,138.56,138.55,0.72000001]
[1764530116046,16.16588533,138.56,138.55,1e-08]
[1764530116227,15.47588533,138.56,138.55,1e-08]
[1764530122357,16.70641361,138.56,138.55,1e-08]
[1764530123154,17.39641361,138.56,138.55,1e-08]
[1764530123852,42.79954567,138.56,138.55,1e-08]
[1764530133778,26.49068167,138.56,138.55,1e-08]
[1764530138190,0.28432314,138.55,138.54,1e-08]
[1764530138396,4.37211527,138.55,138.54,1e-08]
[1764530138894,7.2642739,138.55,138.54,1e-08]
[1764530141892,30.79074887,138.55,138.54,1e-08]
[1764530155402,29.83642573,138.55,138.54,0.69000001]
[1764530155804,13.52756173,138.55,138.54,0.69000001]
[1764530162417,10.1097696,138.55,138.54,0.69000001]
[1764530162622,13.52756173,138.55,138.54,0.69000001]
[1764530162807,10.6354031,138.55,138.54,0.69000001]
[1764530164221,7.21761097,138.55,138.54,0.69000001]
[1764530167725,10.39716417,138.56,138.54,0.69000001]
[1764530168223,7.21664593,138.57,138.54,0.69000001]
[1764530170225,3.41779213,138.56,138.54,0.69000001]
[1764530171909,3.41779213,138.57,138.54,0.69000001]
[1764530172110,3.41779213,138.57,138.54,7.90807652]
[1764530172609,3.41779213,138.57,138.55,0.67]
[1764530174159,10.39627431,138.58,138.55,0.67]
[1764530174470,3.41779213,138.57,138.55,0.67]
[1764530175767,13.81406644,138.58,138.55,0.67]
[1764530181865,10.39627431,138.58,138.55,0.67]
[1764530182046,13.81406644,138.58,138.55,0.67]
[1764530183159,14.47406644,138.58,138.55,0.67]
[1764530183471,3.41779213,138.57,138.55,0.67]
[1764530184453,2.18642118,138.57,138.55,0.67]
[1764530185865,2.18642118,138.56,138.54,1e-08]
[1764530186068,2.18642118,138.55,138.54,1e-08]
[1764530186854,10.0744977,138.55,138.54,1e-08]
[1764530191560,7.88807652,138.55,138.54,1e-08]
[1764530191761,10.0744977,138.55,138.54,1e-08]
[1764530192061,17.29210867,138.55,138.54,1e-08]
[1764530195192,15.10568749,138.55,138.54,1e-08]
[1764530203789,15.10568749,138.55,138.54,0.72000001]
[1764530204293,15.10568749,138.55,138.54,1e-08]
[1764530204695,17.96210867,138.55,138.54,1e-08]
[1764530205575,15.10568749,138.55,138.54,1e-08]
[1764530205777,15.10568749,138.55,138.54,0.72000001]
[1764530206182,7.88807652,138.55,138.54,0.72000001]
[1764530208708,7.88807652,138.55,138.54,0.72000001]
[1764530215629,15.10568749,138.55,138.54,0.72000001]
[1764530218918,15.10568749,138.55,138.54,1e-08]
[1764530219120,17.29210867,138.55,138.54,1e-08]
[1764530219325,17.94210867,138.55,138.54,1e-08]
[1764530229157,18.22643181,138.55,138.54,1e-08]
[1764530236746,26.05313206,138.54,138.53,1e-08]
[1764530236946,33.60597442,138.54,138.53,1e-08]
[1764530237375,36.49855134,138.54,138.53,1e-08]
[1764530238877,43.71668328,138.54,138.53,1e-08]
[1764530244382,46.1839218,138.54,138.53,1e-08]
[1764530258201,33.0196133,138.54,138.53,0.71000001]
[1764530258391,13.29070886,138.54,138.53,0.71000001]
[1764530259703,16.7107493,138.54,138.53,0.71000001]
[1764530269144,13.29070886,138.54,138.53,0.71000001]
[1764530269648,16.7107493,138.54,138.53,0.71000001]
[1764530273963,2.89257692,138.54,138.53,0.71000001]
[1764530279037,7.21762651,138.55,138.53,0.71000001]
[1764530279232,18.05715011,138.55,138.53,0.71000001]
[1764530284844,10.63766695,138.55,138.53,0.71000001]
[1764530285044,7.41948316,138.54,138.53,0.71000001]
[1764530285545,7.41948316,138.54,138.53,1e-08]
[1764530286067,7.41948316,138.54,138.53,0.71000001]
[1764530292550,10.39762651,138.55,138.53,0.71000001]
[1764530292760,17.81710967,138.55,138.53,0.71000001]
[1764530298875,10.59948316,138.55,138.53,0.71000001]
[1764530299077,3.18,138.55,138.53,0.71000001]
[1764530299467,14.63614069,138.56,138.53,0.71000001]
[1764530301863,7.21721432,138.56,138.53,0.71000001]
[1764530302065,7.41892637,138.55,138.53,0.71000001]
[1764530306488,10.08402568,138.56,138.53,0.71000001]
[1764530306786,9.40402568,138.56,138.53,0.71000001]
[1764530307171,0.68,138.55,138.53,1e-08]
[1764530307979,0.68,138.55,138.53,0.69000001]
[1764530310284,7.89769314,138.55,138.53,0.69000001]
[1764530315698,0.68,138.54,138.53,1e-08]
[1764530315895,2.86681136,138.54,138.53,1e-08]
[1764530316097,24.55643287,138.54,138.53,1e-08]
[1764530316679,26.74324423,138.54,138.53,1e-08]
[1764530316978,50.55456331,138.54,138.52,0.2]
[1764530317312,16.308864,138.51,138.5,0.2]
[1764530317495,21.67567536,138.51,138.49,0.2]
[1764530317681,2.86681136,138.5,138.49,0.2]
[1764530317873,5.75980669,138.5,138.49,0.2]
[1764530318695,6.04412983,138.5,138.49,1e-08]
[1764530318879,13.26434643,138.5,138.49,1e-08]
[1764530322794,12.98002329,138.5,138.49,1e-08]
[1764530323103,16.16002329,138.5,138.49,1e-08]
[1764530335619,13.29321193,138.5,138.49,1e-08]
[1764530336113,15.48002329,138.5,138.49,1e-08]
[1764530345712,10.4002166,138.5,138.49,0.70000001]
[1764530346018,15.47939572,138.5,138.49,1e-08]
[1764530350294,16.18939572,138.5,138.49,1e-08]
[1764530350494,14.00258436,138.5,138.49,1e-08]
[1764530350806,16.18939572,138.5,138.49,1e-08]
[1764530360411,16.47371886,138.5,138.49,1e-08]
[1764530366322,14.2869075,138.5,138.49,1e-08]
[1764530366524,17.70929004,138.5,138.49,1e-08]
[1764530368927,11.35259914,138.5,138.49,1e-08]
[1764530369129,14.53259914,138.5,138.49,1e-08]
[1764530370408,14.81692228,138.5,138.49,1e-08]
[1764530370614,16.308864,138.48,138.47,0.2]
[1764530370834,22.91124654,138.48,138.47,0.2]
[1764530371036,23.63124654,138.48,138.47,0.2]
[1764530371438,32.7255146,138.48,138.47,1e-08]
[1764530372033,39.94677398,138.48,138.47,1e-08]
[1764530372415,94.10621937,138.48,138.41,0.92]
[1764530372622,3.42238254,138.42,138.41,0.2]
[1764530372920,6.60238254,138.42,138.41,0.92]
[1764530373240,3.18,138.42,138.41,0.92]
[1764530373810,6.60238254,138.42,138.41,0.92]
[1764530374347,13.82677207,138.42,138.41,0.92]
[1764530375430,13.82677207,138.42,138.41,0.2]
[1764530376022,13.82677207,138.42,138.41,0.92]
[1764530377821,13.82677207,138.42,138.41,0.2]
[1764530378550,13.82677207,138.42,138.41,0.92]
[1764530379256,13.82677207,138.42,138.41,0.2]
[1764530379461,14.54677207,138.42,138.41,0.2]
[1764530379745,13.82677207,138.42,138.41,0.2]
[1764530381147,13.82677207,138.42,138.41,0.92]
[1764530382344,13.82677207,138.42,138.41,0.2]
[1764530384849,14.54677207,138.42,138.41,0.2]
[1764530385021,13.82677207,138.42,138.41,0.2]
[1764530386744,14.54677207,138.42,138.41,0.2]
[1764530387049,13.82677207,138.42,138.41,0.2]
[1764530387418,14.54677207,138.42,138.41,0.2]